[Event "Régional Jeunes Occitanie 2024"]
[Site "L'Isle Jourdain, France"]
[Date "2024.02.22"]
[Round "3.3"]
[White "LAVILLEDIEU, Lily-Mei"]
[Black "PIERROT, Yohann"]
[Result "0-1"]
[TimeControl "1h30 + 30s/cps"]
[WhiteElo "1619"]
[BlackElo "2053"]

1. d4 {[%clk 01:30:57]} {[%emt 00:00:03]} Nf6 {[%clk 01:30:59]} {[%emt
00:00:02]} 2. c4 {[%clk 01:31:16]} {[%emt 00:00:11]} g6 {[%clk 01:31:28]}
{[%emt 00:00:01]} 3. Nc3 {[%clk 01:31:34]} {[%emt 00:00:11]} d5 {[%clk
01:31:57]} {[%emt 00:00:01]} 4. Nf3 {[%clk 01:29:57]} {[%emt 00:02:07]} Bg7
{[%clk 01:32:22]} {[%emt 00:00:06]} 5. Bf4 {[%clk 01:30:14]} {[%emt 00:00:13]}
O-O {[%clk 01:31:07]} {[%emt 00:01:44]} 6. e3 {[%clk 01:30:21]} {[%emt
00:00:23]} c5 {[%clk 01:21:18]} {[%emt 00:10:19]} 7. dxc5 {[%clk 01:28:06]}
{[%emt 00:02:44]} Qa5 {[%clk 01:20:40]} {[%emt 00:01:07]} 8. Rc1 {[%clk
01:28:28]} {[%emt 00:00:08]} Rd8 {[%clk 01:18:01]} {[%emt 00:03:09]} 9. Qa4
{[%clk 01:19:40]} {[%emt 00:09:18]} Qxc5 {[%clk 01:14:40]} {[%emt 00:03:51]} 10.
Rd1 {[%clk 00:53:46]} {[%emt 00:26:24]} Bd7 {[%clk 01:06:36]} {[%emt 00:08:34]}
11. Qb3 {[%clk 00:50:19]} {[%emt 00:03:57]} Bc6 {[%clk 01:06:46]} {[%emt
00:00:20]} 12. Be2 {[%clk 00:47:35]} {[%emt 00:03:14]} e6 {[%clk 01:01:11]}
{[%emt 00:06:06]} 13. O-O {[%clk 00:46:38]} {[%emt 00:01:25]} Nbd7 {[%clk
01:00:37]} {[%emt 00:01:04]} 14. Ne5 {[%clk 00:30:42]} {[%emt 00:16:27]} Nxe5
{[%clk 00:54:12]} {[%emt 00:06:56]} 15. Bxe5 {[%clk 00:30:50]} {[%emt
00:00:22]} dxc4 {[%clk 00:54:17]} {[%emt 00:00:25]} 16. Bd4 {[%clk 00:18:15]}
{[%emt 00:13:05]} Qxd4 {[%clk 00:52:42]} {[%emt 00:02:06]} 17. Qxc4 {[%clk
00:17:09]} {[%emt 00:01:35]} Qxc4 {[%clk 00:53:06]} {[%emt 00:00:06]} 18. Bxc4
{[%clk 00:17:31]} {[%emt 00:00:09]} Rac8 {[%clk 00:53:10]} {[%emt 00:00:26]} 19.
Bb3 {[%clk 00:17:29]} {[%emt 00:00:32]} Kf8 {[%clk 00:53:27]} {[%emt 00:00:13]}
20. Ne2 {[%clk 00:16:34]} {[%emt 00:01:24]} Bb5 {[%clk 00:53:09]} {[%emt
00:00:48]} 21. Rfe1 {[%clk 00:16:30]} {[%emt 00:00:34]} Rxd1 {[%clk 00:53:35]}
{[%emt 00:00:04]} 22. Bxd1 {[%clk 00:16:53]} {[%emt 00:00:07]} Bxe2 {[%clk
00:53:59]} {[%emt 00:00:06]} 23. Rxe2 {[%clk 00:17:08]} {[%emt 00:00:14]} Rc1
{[%clk 00:54:22]} {[%emt 00:00:07]} 24. Re1 {[%clk 00:17:26]} {[%emt 00:00:12]}
Nd5 {[%clk 00:54:33]} {[%emt 00:00:18]} 25. b3 {[%clk 00:17:17]} {[%emt
00:00:39]} Nc3 {[%clk 00:54:54]} {[%emt 00:00:09]} 0-1

[Event "Régional Jeunes Occitanie 2024"]
[Site "L'Isle Jourdain, France"]
[Date "2024.02.22"]
[Round "3.7"]
[White "CASSAGNERES, Charlie"]
[Black "BAUER, Pierre"]
[Result "0-1"]
[TimeControl "1h30 + 30s/cps"]
[WhiteElo "1238"]
[BlackElo "1765"]

1. d4 {[%clk 01:30:59]} Nf6 {[%clk 01:30:36]} {[%emt 00:00:24]} 2. c4 {[%clk
01:31:23]} {[%emt 00:00:06]} g6 {[%clk 01:30:57]} {[%emt 00:00:09]} 3. Nc3
{[%clk 01:31:45]} {[%emt 00:00:08]} Bg7 {[%clk 01:31:19]} {[%emt 00:00:07]} 4.
Nf3 {[%clk 01:32:04]} {[%emt 00:00:13]} d6 {[%clk 01:31:36]} {[%emt 00:00:12]}
5. e4 {[%clk 01:32:14]} {[%emt 00:00:20]} O-O {[%clk 01:31:31]} {[%emt
00:00:36]} 6. Be2 {[%clk 01:32:33]} {[%emt 00:00:10]} e5 {[%clk 01:30:47]}
{[%emt 00:01:14]} 7. d5 {[%clk 01:32:07]} {[%emt 00:00:58]} a5 {[%clk
01:30:53]} {[%emt 00:00:23]} 8. Bg5 {[%clk 01:32:12]} {[%emt 00:00:24]} Na6
{[%clk 01:30:08]} {[%emt 00:01:16]} 9. O-O {[%clk 01:31:30]} {[%emt 00:01:13]}
Nc5 {[%clk 01:28:51]} {[%emt 00:01:46]} 10. Qc2 {[%clk 01:29:45]} {[%emt
00:02:14]} h6 {[%clk 01:27:41]} {[%emt 00:01:40]} 11. Be3 {[%clk 01:28:42]}
{[%emt 00:01:33]} Nfd7 {[%clk 01:24:18]} {[%emt 00:03:52]} 12. Ne1 {[%clk
01:26:39]} {[%emt 00:02:35]} f5 {[%clk 01:23:01]} {[%emt 00:01:46]} 13. exf5
{[%emt 00:01:26]} gxf5 {[%clk 01:22:54]} {[%emt 00:00:10]} 14. Nd3 {[%clk
01:25:47]} {[%emt 00:00:53]} f4 {[%clk 01:19:15]} {[%emt 00:04:10]} 15. Bxc5
{[%clk 01:25:15]} {[%emt 00:01:02]} Nxc5 {[%clk 01:19:08]} {[%emt 00:00:38]} 16.
Nxc5 {[%clk 01:25:38]} {[%emt 00:00:07]} dxc5 {[%clk 01:19:25]} {[%emt
00:00:13]} 17. Bf3 {[%clk 01:24:57]} {[%emt 00:01:11]} Bf5 {[%clk 01:17:05]}
{[%emt 00:02:49]} 18. Be4 {[%clk 01:25:19]} {[%emt 00:00:09]} Bxe4 {[%clk
01:12:49]} {[%emt 00:04:46]} 19. Qxe4 {[%clk 01:21:40]} {[%emt 00:04:09]} f3
{[%clk 01:12:07]} {[%emt 00:01:12]} 20. g3 {[%clk 01:20:45]} {[%emt 00:01:24]}
Qg5 {[%clk 01:05:43]} {[%emt 00:06:50]} 21. h4 {[%clk 01:19:25]} {[%emt
00:01:53]} Qe7 {[%clk 01:03:09]} {[%emt 00:03:03]} 22. Rad1 {[%clk 01:19:09]}
{[%emt 00:00:47]} Qd7 {[%clk 01:01:28]} {[%emt 00:02:12]} 23. Rd3 {[%clk
01:18:53]} {[%emt 00:00:46]} Rf4 {[%clk 01:01:04]} {[%emt 00:00:54]} 24. Qg6
{[%clk 01:18:24]} {[%emt 00:00:58]} Ra6 {[%clk 00:56:39]} {[%emt 00:04:55]} 25.
d6 {[%clk 01:17:42]} {[%emt 00:01:13]} Rf6 {[%clk 00:49:54]} {[%emt 00:07:15]}
26. Qe4 {[%clk 01:17:29]} {[%emt 00:00:43]} Raxd6 {[%clk 00:48:42]} {[%emt
00:01:43]} 27. Rxf3 {[%clk 01:16:58]} {[%emt 00:01:01]} Rxf3 {[%clk 00:44:43]}
{[%emt 00:04:29]} 28. Qxf3 {[%clk 01:17:24]} {[%emt 00:00:04]} b6 {[%clk
00:40:59]} {[%emt 00:04:13]} 29. Nd5 {[%clk 01:15:40]} {[%emt 00:02:14]} b5
{[%clk 00:39:31]} {[%emt 00:01:58]} 30. Ne3 {[%clk 01:15:39]} {[%emt 00:00:31]}
c6 {[%clk 00:37:58]} {[%emt 00:02:03]} 31. cxb5 {[%clk 01:15:33]} {[%emt
00:00:37]} cxb5 {[%clk 00:38:18]} {[%emt 00:00:10]} 32. Rd1 {[%clk 01:14:09]}
{[%emt 00:01:53]} Rxd1+ {[%clk 00:38:26]} {[%emt 00:00:23]} 33. Qxd1 {[%clk
01:14:31]} {[%emt 00:00:08]} Qxd1+ {[%clk 00:38:30]} {[%emt 00:00:27]} 34. Nxd1
{[%clk 01:14:55]} {[%emt 00:00:06]} e4 {[%clk 00:38:35]} {[%emt 00:00:25]} 35.
Kf1 {[%clk 01:15:13]} {[%emt 00:00:13]} Kf7 {[%clk 00:38:12]} {[%emt 00:00:53]}
36. Ke2 {[%clk 01:15:40]} {[%emt 00:00:03]} Ke6 {[%clk 00:38:22]} {[%emt
00:00:19]} 37. Ke3 {[%clk 01:15:05]} {[%emt 00:01:05]} Kf5 {[%clk 00:36:16]}
{[%emt 00:02:36]} 38. Nc3 {[%clk 01:12:56]} {[%emt 00:02:39]} Bxc3 {[%clk
00:35:51]} {[%emt 00:00:56]} 39. bxc3 {[%clk 01:13:13]} {[%emt 00:00:13]} b4
{[%clk 00:32:06]} {[%emt 00:04:14]} 40. cxb4 {[%clk 01:11:52]} {[%emt
00:01:52]} cxb4 {[%clk 00:32:27]} {[%emt 00:00:09]} 41. g4+ {[%clk 01:11:27]}
{[%emt 00:00:55]} Kxg4 {[%clk 00:32:23]} {[%emt 00:00:34]} 42. Kxe4 {[%clk
01:11:50]} {[%emt 00:00:07]} a4 {[%clk 00:32:47]} {[%emt 00:00:06]} 43. Kd4
{[%clk 01:09:41]} {[%emt 00:02:40]} b3 {[%clk 00:30:25]} {[%emt 00:02:51]} 44.
axb3 {[%clk 01:10:09]} {[%emt 00:00:01]} axb3 {[%clk 00:30:49]} {[%emt
00:00:06]} 45. Kc3 {[%clk 01:10:29]} {[%emt 00:00:11]} Kxh4 {[%clk 00:30:56]}
{[%emt 00:00:23]} 46. Kxb3 {[%clk 01:10:54]} {[%emt 00:00:05]} Kg4 {[%clk
00:31:14]} {[%emt 00:00:12]} 47. Kc4 {[%clk 01:11:18]} {[%emt 00:00:06]} Kf3
{[%clk 00:30:57]} {[%emt 00:00:46]} 48. Kd4 {[%clk 01:11:33]} {[%emt 00:00:13]}
h5 {[%clk 00:31:17]} {[%emt 00:00:28]} 0-1

[ePGN "0.1;DGT LiveChess/2.2.6"]

[Event "Régional Jeunes Occitanie 2024"]
[Site "L'Isle Jourdain, France"]
[Date "2024.02.22"]
[Round "4.6"]
[White "LAVAL, Nolan"]
[Black "MORALES, Maxime"]
[Result "1-0"]
[TimeControl "1h30 + 30s/cps"]
[WhiteElo "1454"]
[BlackElo "1303"]

1. e4 {[%clk 01:30:57]} {[%emt 00:00:02]} c5 {[%clk 01:30:55]} {[%emt
00:00:05]} 2. Nf3 {[%clk 01:31:24]} {[%emt 00:00:04]} e6 {[%clk 01:31:21]}
{[%emt 00:00:04]} 3. d4 {[%clk 01:31:00]} {[%emt 00:00:54]} cxd4 {[%clk
01:31:18]} {[%emt 00:00:34]} 4. Nxd4 {[%clk 01:31:22]} {[%emt 00:00:08]} a6
{[%clk 01:31:28]} {[%emt 00:00:19]} 5. Bd3 {[%clk 01:31:37]} {[%emt 00:00:15]}
Nf6 {[%clk 01:31:18]} {[%emt 00:00:38]} 6. O-O {[%clk 01:31:28]} {[%emt
00:00:41]} Qc7 {[%clk 01:31:16]} {[%emt 00:00:32]} 7. c4 {[%clk 01:30:06]}
{[%emt 00:01:53]} d6 {[%clk 01:30:52]} {[%emt 00:00:55]} 8. Nc3 {[%clk
01:30:06]} {[%emt 00:00:30]} Be7 {[%clk 01:30:37]} {[%emt 00:00:44]} 9. b3
{[%clk 01:29:56]} {[%emt 00:00:41]} O-O {[%clk 01:30:11]} {[%emt 00:00:55]} 10.
Bb2 {[%clk 01:30:20]} {[%emt 00:00:06]} Nbd7 {[%clk 01:29:49]} {[%emt
00:00:51]} 11. Qe2 {[%clk 01:28:11]} {[%emt 00:02:37]} b6 {[%clk 01:29:57]}
{[%emt 00:00:24]} 12. Rad1 {[%clk 01:26:19]} {[%emt 00:02:22]} Bb7 {[%clk
01:29:07]} {[%emt 00:01:20]} 13. Rfe1 {[%clk 01:25:48]} {[%emt 00:01:02]} Rac8
{[%clk 01:28:21]} {[%emt 00:01:16]} 14. Bb1 {[%clk 01:24:13]} {[%emt 00:02:04]}
Qb8 {[%clk 01:26:43]} {[%emt 00:02:08]} 15. Nc2 {[%clk 01:18:59]} {[%emt
00:05:44]} Bd8 {[%clk 01:24:25]} {[%emt 00:02:47]} 16. Ne3 {[%clk 01:17:38]}
{[%emt 00:01:52]} Bc7 {[%clk 01:23:36]} {[%emt 00:01:19]} 17. h3 {[%emt
00:11:22]} Rfd8 {[%clk 01:18:09]} {[%emt 00:05:49]} 18. Rd2 {[%clk 00:45:37]}
{[%emt 00:21:46]} Ne5 {[%clk 01:07:34]} {[%emt 00:11:05]} 19. Red1 {[%clk
00:43:00]} {[%emt 00:03:03]} Nfd7 {[%clk 01:00:03]} {[%emt 00:08:05]} 20. f4
{[%clk 00:27:58]} {[%emt 00:15:32]} Ng6 {[%clk 00:53:44]} {[%emt 00:06:48]} 21.
Qf2 {[%clk 00:21:44]} {[%emt 00:06:44]} Nf6 {[%clk 00:48:52]} {[%emt 00:05:22]}
22. g3 {[%clk 00:16:33]} {[%emt 00:05:41]} Qa8 {[%clk 00:42:48]} {[%emt
00:06:33]} 23. Qf3 {[%clk 00:15:08]} {[%emt 00:01:55]} h5 {[%clk 00:36:57]}
{[%emt 00:06:22]} 24. h4 {[%clk 00:13:35]} {[%emt 00:33:16]} Ne7 {[%clk
00:31:04]} 25. Kh2 {[%clk 00:12:45]} Nf5 {[%clk 00:28:37]} 26. Nxf5 {[%clk
00:11:46]} exf5 {[%clk 00:28:41]} 27. Nd5 {[%clk 00:11:54]} Nxd5 {[%clk
00:27:08]} 28. exd5 {[%clk 00:12:12]} g6 {[%clk 00:19:44]} 29. Qc3 {[%clk
00:11:58]} Kf8 {[%clk 00:18:22]} 30. Qg7+ {[%clk 00:12:08]} Ke7 {[%clk
00:18:11]} 31. Re2+ {[%clk 00:12:12]} Kd7 {[%clk 00:18:34]} 32. Qxf7# {[%clk
00:12:34]} 1-0

[Event "Régional Jeunes Occitanie 2024"]
[Site "L'Isle Jourdain, France"]
[Date "2024.02.22"]
[Round "4.3"]
[White "PIERROT, Yohann"]
[Black "PERROUIN, Alexian"]
[Result "1/2-1/2"]
[TimeControl "1h30 + 30s/cps"]
[WhiteElo "2053"]
[BlackElo "1829"]

1. e4 {[%clk 01:30:57]} {[%emt 00:00:03]} c5 {[%clk 01:30:56]} {[%emt
00:00:04]} 2. Nf3 {[%clk 01:31:16]} {[%emt 00:00:12]} g6 {[%clk 01:31:22]}
{[%emt 00:00:04]} 3. d4 {[%clk 01:31:15]} {[%emt 00:00:31]} cxd4 {[%clk
01:31:46]} {[%emt 00:00:05]} 4. Nxd4 {[%clk 01:31:43]} {[%emt 00:00:03]} Nc6
{[%clk 01:32:09]} {[%emt 00:00:07]} 5. c4 {[%clk 01:31:43]} {[%emt 00:00:30]}
Nf6 {[%clk 01:32:36]} {[%emt 00:00:04]} 6. Nc3 {[%clk 01:32:09]} {[%emt
00:00:04]} d6 {[%clk 01:33:01]} {[%emt 00:00:05]} 7. Be2 {[%clk 01:32:20]}
{[%emt 00:00:19]} Nxd4 {[%clk 01:33:11]} {[%emt 00:00:19]} 8. Qxd4 {[%clk
01:32:45]} {[%emt 00:00:05]} Bg7 {[%clk 01:33:31]} {[%emt 00:00:10]} 9. Be3
{[%clk 01:29:25]} {[%emt 00:03:51]} O-O {[%clk 01:33:55]} {[%emt 00:00:07]} 10.
Qd2 {[%clk 01:28:57]} {[%emt 00:00:57]} a5 {[%clk 01:33:26]} {[%emt 00:00:59]}
11. O-O {[%clk 01:28:06]} {[%emt 00:01:20]} a4 {[%clk 01:31:26]} {[%emt
00:02:31]} 12. Rac1 {[%clk 01:26:50]} {[%emt 00:01:46]} Qa5 {[%clk 01:28:29]}
{[%emt 00:03:27]} 13. Rfd1 {[%clk 01:26:45]} {[%emt 00:00:35]} Be6 {[%clk
01:26:32]} {[%emt 00:02:26]} 14. f3 {[%clk 01:25:08]} {[%emt 00:02:07]} Rfc8
{[%clk 01:23:01]} {[%emt 00:04:02]} 15. Nd5 {[%clk 01:18:31]} {[%emt 00:07:07]}
Qxd2 {[%clk 01:17:52]} {[%emt 00:05:38]} 16. Rxd2 {[%clk 01:13:48]} {[%emt
00:05:13]} Nxd5 {[%clk 00:56:17]} {[%emt 00:22:04]} 17. exd5 {[%clk 01:13:54]}
{[%emt 00:00:24]} Bd7 {[%clk 00:56:07]} {[%emt 00:00:40]} 18. a3 {[%clk
01:03:51]} {[%emt 00:10:34]} h5 {[%clk 00:54:08]} {[%emt 00:02:28]} 19. Kf2
{[%clk 00:59:30]} {[%emt 00:04:51]} Bf6 {[%clk 00:51:20]} {[%emt 00:03:18]} 20.
Re1 {[%clk 00:52:48]} {[%emt 00:07:12]} Rab8 {[%clk 00:40:38]} {[%emt
00:11:12]} 21. Bb6 {[%clk 00:51:36]} {[%emt 00:01:42]} Bg5 {[%clk 00:40:47]}
{[%emt 00:00:21]} 22. Rdd1 {[%clk 00:47:30]} {[%emt 00:04:36]} Bf5 {[%clk
00:39:40]} {[%emt 00:01:37]} 1/2-1/2

[Event "Régional Jeunes Occitanie 2024"]
[Site "L'Isle Jourdain, France"]
[Date "2024.02.22"]
[Round "4.8"]
[White "BAILLIA, Akrem"]
[Black "MARTINEZ, Julien"]
[Result "0-1"]
[TimeControl "1h30 + 30s/cps"]
[WhiteElo "1306"]
[BlackElo "1556"]

1. e4 {[%clk 01:30:58]} {[%emt 00:00:01]} c6 {[%clk 01:30:59]} {[%emt
00:00:01]} 2. Nf3 {[%clk 01:31:22]} {[%emt 00:00:05]} d5 {[%clk 01:31:24]}
{[%emt 00:00:05]} 3. Nc3 {[%clk 01:31:46]} {[%emt 00:00:06]} dxe4 {[%clk
01:31:50]} {[%emt 00:00:05]} 4. Nxe4 {[%emt 00:00:05]} Nf6 {[%clk 01:32:12]}
{[%emt 00:00:07]} 5. Qe2 {[%clk 01:32:39]} {[%emt 00:00:04]} Nxe4 {[%clk
01:32:18]} {[%emt 00:00:24]} 6. Qxe4 {[%clk 01:32:59]} {[%emt 00:00:09]} Nd7
{[%clk 01:32:44]} {[%emt 00:00:05]} 7. Bc4 {[%clk 01:33:22]} {[%emt 00:00:07]}
Nf6 {[%clk 01:33:03]} {[%emt 00:00:11]} 8. Ne5 {[%clk 01:33:42]} {[%emt
00:00:08]} e6 {[%clk 01:33:28]} {[%emt 00:00:06]} 9. Qe2 {[%clk 01:34:02]}
{[%emt 00:00:10]} Bd6 {[%clk 01:33:53]} {[%emt 00:00:06]} 10. d4 {[%clk
01:33:56]} {[%emt 00:00:36]} Qc7 {[%clk 01:33:45]} {[%emt 00:00:37]} 11. O-O
{[%clk 01:33:50]} {[%emt 00:00:36]} O-O {[%clk 01:33:56]} {[%emt 00:00:19]} 12.
Bg5 {[%clk 01:33:47]} {[%emt 00:00:33]} Nd5 {[%clk 01:34:08]} {[%emt 00:00:18]}
13. Bh4 {[%clk 01:32:58]} {[%emt 00:01:19]} b5 {[%clk 01:34:01]} {[%emt
00:00:37]} 14. Bb3 {[%clk 01:31:58]} {[%emt 00:01:31]} Nf4 {[%clk 01:34:05]}
{[%emt 00:00:26]} 15. Qe4 {[%clk 01:31:22]} {[%emt 00:01:05]} Nd5 {[%clk
01:33:39]} {[%emt 00:00:57]} 16. c3 {[%clk 01:30:20]} {[%emt 00:01:32]} Bb7
{[%clk 01:33:57]} {[%emt 00:00:12]} 17. Bc2 {[%clk 01:29:53]} {[%emt 00:00:56]}
f5 {[%clk 01:34:08]} {[%emt 00:00:17]} 18. Qe2 {[%clk 01:29:09]} {[%emt
00:01:16]} a6 {[%clk 01:34:00]} {[%emt 00:00:38]} 19. h3 {[%clk 01:24:00]}
{[%emt 00:05:39]} c5 {[%clk 01:30:13]} {[%emt 00:04:17]} 20. Rac1 {[%clk
01:19:46]} {[%emt 00:04:45]} Nf4 {[%clk 01:30:21]} {[%emt 00:00:21]} 21. Qe3
{[%clk 01:13:59]} {[%emt 00:06:17]} Nxg2 {[%clk 01:29:39]} {[%emt 00:01:12]} 22.
Qg3 {[%clk 01:14:03]} {[%emt 00:00:25]} Nxh4 {[%clk 01:29:58]} {[%emt
00:00:11]} 23. Qxh4 {[%clk 01:14:29]} {[%emt 00:00:05]} Bxe5 {[%clk 01:30:00]}
{[%emt 00:00:28]} 24. dxe5 {[%clk 01:14:51]} {[%emt 00:00:07]} Qxe5 {[%clk
01:30:24]} {[%emt 00:00:06]} 25. Qe7 {[%clk 01:14:04]} {[%emt 00:01:17]} Qd5
{[%clk 01:30:29]} {[%emt 00:00:25]} 26. f3 {[%clk 01:13:08]} {[%emt 00:01:26]}
Rf6 {[%clk 01:30:30]} {[%emt 00:00:29]} 27. Rcd1 {[%clk 01:10:42]} {[%emt
00:02:54]} Qe5 {[%clk 01:28:10]} {[%emt 00:02:51]} 28. Rf2 {[%clk 01:05:35]}
{[%emt 00:05:38]} Bd5 {[%clk 01:26:23]} {[%emt 00:02:17]} 29. Qxc5 {[%clk
00:59:36]} {[%emt 00:06:29]} Rg6+ {[%clk 01:24:48]} {[%emt 00:02:05]} 30. Kf1
{[%clk 00:58:37]} {[%emt 00:01:30]} Bc4+ {[%clk 01:23:36]} {[%emt 00:01:42]} 31.
Qxc4 {[%clk 00:57:33]} {[%emt 00:01:33]} bxc4 {[%clk 01:23:53]} {[%emt
00:00:14]} 32. f4 {[%clk 00:56:39]} {[%emt 00:01:23]} Qc7 {[%clk 01:24:04]}
{[%emt 00:00:19]} 33. Re1 {[%clk 00:55:59]} {[%emt 00:01:10]} Rd8 {[%clk
01:24:01]} {[%emt 00:00:32]} 34. b3 {[%clk 00:55:30]} {[%emt 00:01:00]} Rd6
{[%clk 01:22:45]} {[%emt 00:01:45]} 35. b4 {[%emt 00:05:32]} Rg3 {[%clk
01:22:34]} 36. a4 {[%clk 00:49:50]} {[%emt 00:01:50]} Rxc3 {[%clk 01:21:38]}
{[%emt 00:01:26]} 37. Rb1 {[%clk 00:47:53]} {[%emt 00:02:26]} Qb7 {[%clk
01:21:31]} {[%emt 00:00:37]} 38. Bd1 {[%clk 00:45:51]} {[%emt 00:02:31]} Rcd3
{[%clk 01:21:36]} {[%emt 00:00:26]} 39. Bc2 {[%clk 00:44:13]} {[%emt 00:02:08]}
Rd2 {[%clk 01:22:00]} {[%emt 00:00:06]} 40. Rxd2 {[%clk 00:43:02]} {[%emt
00:01:41]} Rxd2 {[%clk 01:22:14]} {[%emt 00:00:16]} 41. Ke1 {[%clk 00:43:18]}
{[%emt 00:00:14]} Rxc2 {[%clk 01:22:26]} {[%emt 00:00:18]} 42. Kd1 {[%clk
00:43:37]} {[%emt 00:00:11]} Rh2 {[%clk 01:22:28]} {[%emt 00:00:28]} 43. b5
{[%clk 00:43:48]} {[%emt 00:00:21]} Qh1# {[%emt 00:00:55]} 0-1

[Event "Régional Jeunes Occitanie 2024"]
[Site "L'Isle Jourdain, France"]
[Date "2024.02.22"]
[Round "4.2"]
[White "CLAVERIE, Gabriel"]
[Black "CANFRAN, Joan"]
[Result "1/2-1/2"]
[TimeControl "1h30 + 30s/cps"]
[WhiteElo "1132"]
[BlackElo "1710"]

1. e4 {[%clk 01:30:57]} {[%emt 00:00:02]} g6 {[%clk 01:30:55]} {[%emt
00:00:06]} 2. d4 {[%clk 01:31:14]} {[%emt 00:00:13]} Bg7 {[%clk 01:31:16]}
{[%emt 00:00:08]} 3. Bc4 {[%clk 01:31:09]} {[%emt 00:00:35]} d6 {[%clk
01:31:22]} {[%emt 00:00:25]} 4. Nf3 {[%clk 01:30:49]} {[%emt 00:00:51]} Nf6
{[%clk 01:31:26]} {[%emt 00:00:26]} 5. Nc3 {[%clk 01:31:01]} {[%emt 00:00:18]}
O-O {[%clk 01:31:46]} {[%emt 00:00:10]} 6. h3 {[%clk 01:31:21]} {[%emt
00:00:11]} Nxe4 {[%clk 01:31:32]} {[%emt 00:00:44]} 7. Nxe4 {[%clk 01:29:41]}
{[%emt 00:02:08]} d5 {[%clk 01:31:57]} {[%emt 00:00:07]} 8. Bxd5 {[%clk
01:29:26]} {[%emt 00:00:46]} Qxd5 {[%emt 00:00:25]} 9. Nc3 {[%clk 01:28:53]}
{[%emt 00:00:46]} Qc4 {[%clk 01:27:07]} {[%emt 00:05:41]} 10. Qe2 {[%clk
01:24:43]} {[%emt 00:04:40]} Qxe2+ {[%clk 01:19:48]} {[%emt 00:07:48]} 11. Nxe2
{[%clk 01:25:04]} {[%emt 00:00:08]} Bf5 {[%clk 01:07:17]} {[%emt 00:13:01]} 12.
c3 {[%clk 01:25:15]} {[%emt 00:00:20]} Be4 {[%clk 01:06:18]} {[%emt 00:01:28]}
13. Bf4 {[%clk 01:24:56]} {[%emt 00:00:50]} c6 {[%clk 01:02:01]} {[%emt
00:04:46]} 14. O-O-O {[%clk 01:25:00]} {[%emt 00:00:26]} Nd7 {[%clk 00:59:31]}
{[%emt 00:03:00]} 15. Ng3 {[%clk 01:22:24]} {[%emt 00:03:06]} Bxf3 {[%clk
00:57:20]} {[%emt 00:02:41]} 16. gxf3 {[%clk 01:22:44]} {[%emt 00:00:09]} e5
{[%clk 00:53:37]} {[%emt 00:04:14]} 17. Be3 {[%clk 01:18:16]} {[%emt 00:04:57]}
Nb6 {[%clk 00:41:32]} {[%emt 00:12:35]} 18. f4 {[%clk 01:08:25]} {[%emt
00:10:22]} exd4 {[%clk 00:39:57]} {[%emt 00:02:05]} 19. Bxd4 {[%clk 01:08:28]}
{[%emt 00:00:27]} Bxd4 {[%clk 00:36:46]} {[%emt 00:03:41]} 20. Rxd4 {[%clk
01:08:21]} {[%emt 00:00:38]} Rad8 {[%clk 00:29:48]} {[%emt 00:07:28]} 21. Rhd1
{[%clk 01:07:21]} {[%emt 00:01:29]} Rxd4 {[%clk 00:24:36]} {[%emt 00:05:43]} 22.
Rxd4 {[%clk 01:07:36]} {[%emt 00:00:14]} f5 {[%clk 00:23:32]} {[%emt 00:01:34]}
23. b3 {[%clk 01:06:20]} {[%emt 00:01:47]} Kf7 {[%clk 00:19:06]} {[%emt
00:04:56]} 24. a4 {[%clk 01:05:27]} {[%emt 00:01:26]} Ke7 {[%clk 00:13:38]}
{[%emt 00:05:55]} 25. Kc2 {[%clk 01:02:53]} {[%emt 00:03:04]} Rd8 {[%clk
00:11:22]} {[%emt 00:02:46]} 26. Rxd8 {[%clk 01:01:20]} {[%emt 00:02:03]} Kxd8
{[%clk 00:11:50]} {[%emt 00:00:02]} 27. Kd3 {[%clk 01:01:43]} {[%emt 00:00:07]}
Nd5 {[%clk 00:10:09]} {[%emt 00:02:11]} 28. Ne2 {[%emt 00:00:45]} Ke7 29. Kd4
Kd6 30. b4 {[%clk 01:01:28]} 1/2-1/2